[Event "Titled Tuesday Blitz May 03 Early 2022"]
[White "Khabinets, Ivan"]
[Black "Silvestre, Christian"]
[WhiteFideId "14115980"]
[BlackFideId "30956269"]
[WhiteElo "2114"]
[BlackElo "2356"]
[Result "1/2-1/2"]
[Round "09"]
[TimeControl "180+1"]
[Date "2022.05.03"]
[WhiteClock "0:01:10"]
[BlackClock "0:00:01"]

1. d4 {[%clk 0:03:00]}  Nf6 {[%clk 0:02:56]} 2. c4 {[%clk 0:03:00]}  d6 {[%clk 0:02:55]} 3. Nc3 {[%clk 0:03:00]}  g6 {[%clk 0:02:56]} 4. e4 {[%clk 0:03:00]}  Bg7 {[%clk 0:02:57]} 5. Nf3 {[%clk 0:03:00]}  O-O {[%clk 0:02:57]} 6. Be2 {[%clk 0:03:00]}  e5 {[%clk 0:02:56]} 7. O-O {[%clk 0:03:01]}  Nc6 {[%clk 0:02:55]} 8. d5 {[%clk 0:03:01]}  Ne7 {[%clk 0:02:55]} 9. Ne1 {[%clk 0:03:02]}  Nd7 {[%clk 0:02:55]} 10. f3 {[%clk 0:03:03]}  f5 {[%clk 0:02:55]} 11. Nd3 {[%clk 0:03:04]}  Nf6 {[%clk 0:02:51]} 12. Be3 {[%clk 0:03:02]}  f4 {[%clk 0:02:50]} 13. Bf2 {[%clk 0:03:00]}  g5 {[%clk 0:02:51]} 14. c5 {[%clk 0:03:01]}  Rf7 {[%clk 0:02:49]} 15. Rc1 {[%clk 0:03:00]}  h5 {[%clk 0:02:41]} 16. cxd6 {[%clk 0:02:57]}  cxd6 {[%clk 0:02:40]} 17. Nb5 {[%clk 0:02:57]}  Ng6 {[%clk 0:02:39]} 18. Nxa7 {[%clk 0:02:44]}  Bd7 {[%clk 0:02:31]} 19. Qb3 {[%clk 0:02:40]}  g4 {[%clk 0:02:22]} 20. Nb5 {[%clk 0:02:39]}  g3 {[%clk 0:02:14]} 21. hxg3 {[%clk 0:02:07]}  fxg3 {[%clk 0:02:15]} 22. Bxg3 {[%clk 0:02:08]}  Qb6+ {[%clk 0:01:49]} 23. Nf2 {[%clk 0:02:07]}  h4 {[%clk 0:01:34]} 24. Bh2 {[%clk 0:02:04]}  Bh6 {[%clk 0:01:26]} 25. Rc2 {[%clk 0:01:58]}  Be3 {[%clk 0:01:20]} 26. Nc7 {[%clk 0:01:55]}  Qxb3 {[%clk 0:01:02]} 27. axb3 {[%clk 0:01:56]}  Rc8 {[%clk 0:00:57]} 28. Bd3 {[%clk 0:01:51]}  h3 {[%clk 0:00:48]} 29. Ne6 {[%clk 0:01:43]}  Rxc2 {[%clk 0:00:43]} 30. Bxc2 {[%clk 0:01:44]}  hxg2 {[%clk 0:00:41]} 31. Kxg2 {[%clk 0:01:43]}  Nh4+ {[%clk 0:00:40]} 32. Kg3 {[%clk 0:01:43]}  Ng6 {[%clk 0:00:29]} 33. Nh3 {[%clk 0:01:35]}  Nh5+ {[%clk 0:00:28]} 34. Kg2 {[%clk 0:01:35]}  Nh4+ {[%clk 0:00:25]} 35. Kh1 {[%clk 0:01:33]}  Rxf3 {[%clk 0:00:20]} 36. Rxf3 {[%clk 0:01:27]}  Nxf3 {[%clk 0:00:21]} 37. Bd1 {[%clk 0:01:27]}  Nxh2 {[%clk 0:00:18]} 38. Bg4 {[%clk 0:01:26]}  Nxg4 {[%clk 0:00:17]} 39. Kg2 {[%clk 0:01:22]}  Ngf6 {[%clk 0:00:17]} 40. Kf3 {[%clk 0:01:20]}  Bd4 {[%clk 0:00:17]} 41. Nhg5 {[%clk 0:01:19]}  Bxe6 {[%clk 0:00:17]} 42. Nxe6 {[%clk 0:01:19]}  Bxb2 {[%clk 0:00:17]} 43. Nd8 {[%clk 0:01:19]}  Bd4 {[%clk 0:00:18]} 44. Nxb7 {[%clk 0:01:19]}  Ne8 {[%clk 0:00:18]} 45. Kg4 {[%clk 0:01:19]}  Nhf6+ {[%clk 0:00:18]} 46. Kf5 {[%clk 0:01:20]}  Kf7 {[%clk 0:00:19]} 47. Nd8+ {[%clk 0:01:20]}  Ke7 {[%clk 0:00:18]} 48. Nc6+ {[%clk 0:01:20]}  Kf8 {[%clk 0:00:18]} 49. b4 {[%clk 0:01:19]}  Kf7 {[%clk 0:00:18]} 50. b5 {[%clk 0:01:19]}  Ng7+ {[%clk 0:00:17]} 51. Kg5 {[%clk 0:01:18]}  Nd7 {[%clk 0:00:18]} 52. Nd8+ {[%clk 0:01:13]}  Ke8 {[%clk 0:00:17]} 53. Nc6 {[%clk 0:01:08]}  Be3+ {[%clk 0:00:16]} 54. Kg6 {[%clk 0:01:08]}  Kf8 {[%clk 0:00:15]} 55. Nd8 {[%clk 0:01:07]}  Ne8 {[%clk 0:00:15]} 56. Kf5 {[%clk 0:01:06]}  Nc5 {[%clk 0:00:15]} 57. b6 {[%clk 0:01:05]}  Nd7 {[%clk 0:00:13]} 58. b7 {[%clk 0:01:04]}  Nb8 {[%clk 0:00:13]} 59. Ke6 {[%clk 0:01:02]}  Nc7+ {[%clk 0:00:12]} 60. Kxd6 {[%clk 0:01:01]}  Nb5+ {[%clk 0:00:10]} 61. Kxe5 {[%clk 0:00:59]}  Ke7 {[%clk 0:00:11]} 62. Nc6+ {[%clk 0:00:57]}  Nxc6+ {[%clk 0:00:11]} 63. dxc6 {[%clk 0:00:58]}  Ba7 {[%clk 0:00:11]} 64. Kd5 {[%clk 0:00:58]}  Bb8 {[%clk 0:00:11]} 65. Kc5 {[%clk 0:00:58]}  Nc7 {[%clk 0:00:11]} 66. Kb6 {[%clk 0:00:58]}  Kd6 {[%clk 0:00:12]} 67. Ka5 {[%clk 0:00:56]}  Kxc6 {[%clk 0:00:11]} 68. Kb4 {[%clk 0:00:57]}  Kxb7 {[%clk 0:00:12]} 69. Kc4 {[%clk 0:00:58]}  Kc8 {[%clk 0:00:12]} 70. Kd4 {[%clk 0:00:58]}  Kd7 {[%clk 0:00:13]} 71. Ke5 {[%clk 0:00:59]}  Ke7 {[%clk 0:00:13]} 72. Kf5 {[%clk 0:00:59]}  Ne8 {[%clk 0:00:13]} 73. e5 {[%clk 0:01:00]}  Bc7 {[%clk 0:00:14]} 74. Ke4 {[%clk 0:00:59]}  Bd8 {[%clk 0:00:15]} 75. Kd4 {[%clk 0:01:00]}  Bc7 {[%clk 0:00:16]} 76. Kd5 {[%clk 0:01:01]}  Bb8 {[%clk 0:00:16]} 77. Ke4 {[%clk 0:01:02]}  Ke6 {[%clk 0:00:16]} 78. Kf4 {[%clk 0:01:02]}  Nc7 {[%clk 0:00:17]} 79. Kg5 {[%clk 0:01:03]}  Nd5 {[%clk 0:00:18]} 80. Kg4 {[%clk 0:01:03]}  Ne7 {[%clk 0:00:19]} 81. Kf3 {[%clk 0:01:04]}  Bxe5 {[%clk 0:00:19]} 82. Ke3 {[%clk 0:01:05]}  Kd5 {[%clk 0:00:19]} 83. Kd3 {[%clk 0:01:05]}  Nc6 {[%clk 0:00:19]} 84. Ke3 {[%clk 0:01:06]}  Nd4 {[%clk 0:00:20]} 85. Kf2 {[%clk 0:01:06]}  Ke4 {[%clk 0:00:21]} 86. Kg2 {[%clk 0:01:06]}  Nf3 {[%clk 0:00:22]} 87. Kh3 {[%clk 0:01:07]}  Kf4 {[%clk 0:00:23]} 88. Kg2 {[%clk 0:01:08]}  Ke3 {[%clk 0:00:21]} 89. Kh3 {[%clk 0:01:03]}  Kf4 {[%clk 0:00:22]} 90. Kg2 {[%clk 0:01:03]}  Kg4 {[%clk 0:00:22]} 91. Kf2 {[%clk 0:01:03]}  Bd4+ {[%clk 0:00:22]} 92. Ke2 {[%clk 0:01:04]}  Ne5 {[%clk 0:00:22]} 93. Kd2 {[%clk 0:01:04]}  Kf4 {[%clk 0:00:23]} 94. Ke2 {[%clk 0:01:04]}  Ke4 {[%clk 0:00:24]} 95. Kd2 {[%clk 0:01:04]}  Nc6 {[%clk 0:00:22]} 96. Ke2 {[%clk 0:01:04]}  Bc3 {[%clk 0:00:22]} 97. Kf2 {[%clk 0:01:04]}  Nd4 {[%clk 0:00:21]} 98. Kg3 {[%clk 0:01:04]}  Bd2 {[%clk 0:00:20]} 99. Kg4 {[%clk 0:01:04]}  Bf4 {[%clk 0:00:20]} 100. Kh3 {[%clk 0:01:04]}  Kf3 {[%clk 0:00:18]} 101. Kh4 {[%clk 0:01:04]}  Ne6 {[%clk 0:00:17]} 102. Kh5 {[%clk 0:01:04]}  Ke4 {[%clk 0:00:17]} 103. Kg6 {[%clk 0:01:05]}  Ke5 {[%clk 0:00:17]} 104. Kf7 {[%clk 0:01:04]}  Nc5 {[%clk 0:00:17]} 105. Ke8 {[%clk 0:01:05]}  Bg5 {[%clk 0:00:17]} 106. Kf7 {[%clk 0:01:04]}  Kf5 {[%clk 0:00:16]} 107. Ke8 {[%clk 0:01:04]}  Ke6 {[%clk 0:00:16]} 108. Kf8 {[%clk 0:01:05]}  Bf6 {[%clk 0:00:15]} 109. Kg8 {[%clk 0:01:05]}  Kf5 {[%clk 0:00:15]} 110. Kf7 {[%clk 0:01:05]}  Ke5 {[%clk 0:00:15]} 111. Ke8 {[%clk 0:01:05]}  Ke6 {[%clk 0:00:15]} 112. Kf8 {[%clk 0:01:06]}  Nd7+ {[%clk 0:00:14]} 113. Ke8 {[%clk 0:01:06]}  Ne5 {[%clk 0:00:14]} 114. Kf8 {[%clk 0:01:07]}  Bg5 {[%clk 0:00:11]} 115. Ke8 {[%clk 0:01:06]}  Nf7 {[%clk 0:00:09]} 116. Kf8 {[%clk 0:01:07]}  Bh6+ {[%clk 0:00:08]} 117. Ke8 {[%clk 0:01:06]}  Bg5 {[%clk 0:00:08]} 118. Kf8 {[%clk 0:01:06]}  Bh4 {[%clk 0:00:09]} 119. Ke8 {[%clk 0:01:06]}  Nd6+ {[%clk 0:00:08]} 120. Kf8 {[%clk 0:01:07]}  Bf6 {[%clk 0:00:08]} 121. Kg8 {[%clk 0:01:07]}  Nf5 {[%clk 0:00:06]} 122. Kh7 {[%clk 0:01:08]}  Ne7 {[%clk 0:00:03]} 123. Kh6 {[%clk 0:01:07]}  Kf5 {[%clk 0:00:03]} 124. Kh5 {[%clk 0:01:08]}  Ng6 {[%clk 0:00:02]} 125. Kh6 {[%clk 0:01:08]}  Nf4 {[%clk 0:00:02]} 126. Kh7 {[%clk 0:01:07]}  Be7 {[%clk 0:00:02]} 127. Kg8 {[%clk 0:01:07]}  Kg6 {[%clk 0:00:02]} 128. Kh8 {[%clk 0:01:07]}  Ne6 {[%clk 0:00:02]} 129. Kg8 {[%clk 0:01:08]}  Bd6 {[%clk 0:00:02]} 130. Kh8 {[%clk 0:01:09]}  Ng5 {[%clk 0:00:01]} 131. Kg8 {[%clk 0:01:10]}  Nf7 {[%clk 0:00:01]} 1/2-1/2


[Site "https://www.chess.com"]

[Event "Titled Tuesday Blitz May 03 Early 2022"]
[White "Kosteniuk, Alexandra"]
[Black "Srihari L R"]
[WhiteFideId "4128125"]
[BlackFideId "46617116"]
[WhiteElo "2469"]
[BlackElo "2121"]
[Result "1/2-1/2"]
[Round "09"]
[TimeControl "180+1"]
[Date "2022.05.03"]
[WhiteClock "0:00:20"]
[BlackClock "0:00:08"]

1. e4 {[%clk 0:02:57]}  d6 {[%clk 0:02:57]} 2. d4 {[%clk 0:02:57]}  Nf6 {[%clk 0:02:56]} 3. Nc3 {[%clk 0:02:57]}  e5 {[%clk 0:02:56]} 4. dxe5 {[%clk 0:02:56]}  dxe5 {[%clk 0:02:57]} 5. Qxd8+ {[%clk 0:02:56]}  Kxd8 {[%clk 0:02:58]} 6. Bc4 {[%clk 0:02:56]}  Be6 {[%clk 0:02:58]} 7. Bxe6 {[%clk 0:02:56]}  fxe6 {[%clk 0:02:59]} 8. Nf3 {[%clk 0:02:54]}  Bd6 {[%clk 0:02:59]} 9. h3 {[%clk 0:02:51]}  a6 {[%clk 0:02:56]} 10. Be3 {[%clk 0:02:51]}  Ke7 {[%clk 0:02:55]} 11. Nd2 {[%clk 0:02:50]}  Nc6 {[%clk 0:02:52]} 12. a3 {[%clk 0:02:30]}  b5 {[%clk 0:02:48]} 13. Ne2 {[%clk 0:02:26]}  a5 {[%clk 0:02:39]} 14. f3 {[%clk 0:02:22]}  Rhb8 {[%clk 0:02:29]} 15. g4 {[%clk 0:02:18]}  Nd7 {[%clk 0:02:29]} 16. Kf2 {[%clk 0:02:15]}  a4 {[%clk 0:02:22]} 17. c3 {[%clk 0:01:52]}  Na5 {[%clk 0:02:15]} 18. Rad1 {[%clk 0:01:50]}  Nc4 {[%clk 0:02:13]} 19. Nxc4 {[%clk 0:01:36]}  bxc4 {[%clk 0:02:14]} 20. Rd2 {[%clk 0:01:37]}  Rb7 {[%clk 0:02:11]} 21. Ra1 {[%clk 0:01:26]}  Rab8 {[%clk 0:02:10]} 22. Ra2 {[%clk 0:01:27]}  Rb5 {[%clk 0:01:58]} 23. Bg5+ {[%clk 0:01:18]}  Ke8 {[%clk 0:01:57]} 24. Nc1 {[%clk 0:01:09]}  h6 {[%clk 0:01:49]} 25. Be3 {[%clk 0:01:05]}  Bc5 {[%clk 0:01:49]} 26. Ke2 {[%clk 0:01:03]}  Bxe3 {[%clk 0:01:47]} 27. Kxe3 {[%clk 0:01:04]}  Nc5 {[%clk 0:01:46]} 28. h4 {[%clk 0:01:03]}  g5 {[%clk 0:01:44]} 29. h5 {[%clk 0:00:56]}  Ke7 {[%clk 0:01:42]} 30. Ke2 {[%clk 0:00:54]}  R5b6 {[%clk 0:01:14]} 31. Ke3 {[%clk 0:00:38]}  Rd6 {[%clk 0:01:07]} 32. Rxd6 {[%clk 0:00:37]}  cxd6 {[%clk 0:01:08]} 33. Kd2 {[%clk 0:00:37]}  d5 {[%clk 0:01:08]} 34. exd5 {[%clk 0:00:31]}  exd5 {[%clk 0:01:09]} 35. Ke3 {[%clk 0:00:32]}  Kd6 {[%clk 0:01:07]} 36. Ne2 {[%clk 0:00:31]}  Nd3 {[%clk 0:01:06]} 37. Ng3 {[%clk 0:00:31]}  Nxb2 {[%clk 0:00:58]} 38. Nf5+ {[%clk 0:00:31]}  Kc5 {[%clk 0:00:58]} 39. Nxh6 {[%clk 0:00:29]}  d4+ {[%clk 0:00:58]} 40. Kd2 {[%clk 0:00:29]}  Rb3 {[%clk 0:00:54]} 41. Nf7 {[%clk 0:00:24]}  Nd3 {[%clk 0:00:52]} 42. h6 {[%clk 0:00:23]}  dxc3+ {[%clk 0:00:50]} 43. Kc2 {[%clk 0:00:19]}  Ne1+ {[%clk 0:00:44]} 44. Kc1 {[%clk 0:00:19]}  Nd3+ {[%clk 0:00:18]} 45. Kc2 {[%clk 0:00:19]}  Ne1+ {[%clk 0:00:07]} 46. Kc1 {[%clk 0:00:20]}  Nd3+ {[%clk 0:00:08]} 47. Kc2 {[%clk 0:00:20]} 1/2-1/2


[Site "https://www.chess.com"]

[Event "Titled Tuesday Blitz May 03 Early 2022"]
[White "Lashkin, Jegor"]
[Black "Demchenko, Anton"]
[WhiteFideId "13907808"]
[BlackFideId "4160258"]
[WhiteElo "2368"]
[BlackElo "2539"]
[Result "1/2-1/2"]
[Round "09"]
[TimeControl "180+1"]
[Date "2022.05.03"]
[WhiteClock "0:00:10"]
[BlackClock "0:00:33"]

1. d4 {[%clk 0:03:00]}  Nf6 {[%clk 0:02:59]} 2. c4 {[%clk 0:03:00]}  e6 {[%clk 0:02:59]} 3. Nf3 {[%clk 0:03:00]}  b6 {[%clk 0:02:58]} 4. g3 {[%clk 0:03:00]}  Bb7 {[%clk 0:02:58]} 5. Bg2 {[%clk 0:03:00]}  Bb4+ {[%clk 0:02:59]} 6. Bd2 {[%clk 0:03:00]}  Bxd2+ {[%clk 0:02:58]} 7. Qxd2 {[%clk 0:03:00]}  d6 {[%clk 0:02:59]} 8. Nc3 {[%clk 0:03:00]}  Nbd7 {[%clk 0:02:59]} 9. O-O {[%clk 0:03:00]}  Ne4 {[%clk 0:02:58]} 10. Nxe4 {[%clk 0:02:59]}  Bxe4 {[%clk 0:02:58]} 11. Qf4 {[%clk 0:02:59]}  Nf6 {[%clk 0:02:53]} 12. Rac1 {[%clk 0:02:56]}  O-O {[%clk 0:02:52]} 13. Rfd1 {[%clk 0:02:56]}  Qe7 {[%clk 0:02:51]} 14. b4 {[%clk 0:02:37]}  a5 {[%clk 0:02:49]} 15. b5 {[%clk 0:02:36]}  Rad8 {[%clk 0:02:42]} 16. Qe3 {[%clk 0:02:25]}  h6 {[%clk 0:02:24]} 17. Nh4 {[%clk 0:02:17]}  Bxg2 {[%clk 0:01:59]} 18. Kxg2 {[%clk 0:02:17]}  Nd7 {[%clk 0:01:56]} 19. Nf3 {[%clk 0:02:01]}  f5 {[%clk 0:01:45]} 20. Rd2 {[%clk 0:01:18]}  Qf7 {[%clk 0:01:37]} 21. Qd3 {[%clk 0:00:59]}  Nf6 {[%clk 0:01:35]} 22. Rdc2 {[%clk 0:00:57]}  Rfe8 {[%clk 0:01:27]} 23. Qe3 {[%clk 0:00:50]}  g5 {[%clk 0:01:08]} 24. c5 {[%clk 0:00:47]}  Nd5 {[%clk 0:01:07]} 25. Qb3 {[%clk 0:00:44]}  g4 {[%clk 0:01:03]} 26. Nd2 {[%clk 0:00:40]}  Rf8 {[%clk 0:00:59]} 27. cxb6 {[%clk 0:00:39]}  cxb6 {[%clk 0:01:00]} 28. a3 {[%clk 0:00:31]}  h5 {[%clk 0:00:58]} 29. Rc6 {[%clk 0:00:29]}  h4 {[%clk 0:00:58]} 30. Qd3 {[%clk 0:00:26]}  e5 {[%clk 0:00:52]} 31. Nc4 {[%clk 0:00:21]}  e4 {[%clk 0:00:50]} 32. Qc2 {[%clk 0:00:19]}  f4 {[%clk 0:00:44]} 33. Qxe4 {[%clk 0:00:13]}  Rde8 {[%clk 0:00:40]} 34. Ne5 {[%clk 0:00:12]}  dxe5 {[%clk 0:00:38]} 35. Rg6+ {[%clk 0:00:11]}  Kh8 {[%clk 0:00:34]} 36. Rh6+ {[%clk 0:00:11]}  Kg8 {[%clk 0:00:34]} 37. Rg6+ {[%clk 0:00:11]}  Kh8 {[%clk 0:00:33]} 38. Rh6+ {[%clk 0:00:11]}  Kg8 {[%clk 0:00:33]} 39. Rg6+ {[%clk 0:00:10]} 1/2-1/2


[Site "https://www.chess.com"]

[Event "Titled Tuesday Blitz May 03 Early 2022"]
[White "Levitskiy, Andrey"]
[Black "Melikyan, Gnel"]
[WhiteFideId "14132885"]
[BlackFideId "54109990"]
[WhiteElo "2301"]
[BlackElo "1772"]
[Result "0-1"]
[Round "09"]
[TimeControl "180+1"]
[Date "2022.05.03"]
[WhiteClock "0:00:03"]
[BlackClock "0:00:50"]

1. e4 {[%clk 0:02:56]}  e6 {[%clk 0:02:57]} 2. d4 {[%clk 0:02:55]}  d5 {[%clk 0:02:57]} 3. Bd3 {[%clk 0:02:53]}  dxe4 {[%clk 0:02:56]} 4. Bxe4 {[%clk 0:02:53]}  Nf6 {[%clk 0:02:56]} 5. Bf3 {[%clk 0:02:54]}  c5 {[%clk 0:02:54]} 6. Ne2 {[%clk 0:02:55]}  cxd4 {[%clk 0:02:52]} 7. Nxd4 {[%clk 0:02:54]}  Bc5 {[%clk 0:02:53]} 8. Nb3 {[%clk 0:02:18]}  Qxd1+ {[%clk 0:02:52]} 9. Bxd1 {[%clk 0:02:19]}  Bb6 {[%clk 0:02:50]} 10. Nc3 {[%clk 0:02:19]}  Bd7 {[%clk 0:02:49]} 11. Bf3 {[%clk 0:02:12]}  Bc6 {[%clk 0:02:49]} 12. Be3 {[%clk 0:01:53]}  Bxf3 {[%clk 0:02:44]} 13. gxf3 {[%clk 0:01:53]}  Nbd7 {[%clk 0:02:42]} 14. Rg1 {[%clk 0:01:43]}  g6 {[%clk 0:02:37]} 15. Nb5 {[%clk 0:01:41]}  Ke7 {[%clk 0:02:36]} 16. O-O-O {[%clk 0:01:32]}  Rac8 {[%clk 0:02:30]} 17. Nd6 {[%clk 0:01:28]}  Rc7 {[%clk 0:02:29]} 18. Nb5 {[%clk 0:01:18]}  Rc6 {[%clk 0:02:10]} 19. Bxb6 {[%clk 0:01:03]}  Rxb6 {[%clk 0:02:07]} 20. Nc3 {[%clk 0:00:56]}  Rc8 {[%clk 0:02:04]} 21. Rd2 {[%clk 0:00:45]}  Ne5 {[%clk 0:02:02]} 22. Rg3 {[%clk 0:00:25]}  Rbc6 {[%clk 0:01:44]} 23. f4 {[%clk 0:00:23]}  Nc4 {[%clk 0:01:37]} 24. Re2 {[%clk 0:00:24]}  Nh5 {[%clk 0:01:35]} 25. Rf3 {[%clk 0:00:19]}  Nd6 {[%clk 0:01:30]} 26. Nd4 {[%clk 0:00:12]}  Rc4 {[%clk 0:01:30]} 27. Rd2 {[%clk 0:00:05]}  a6 {[%clk 0:01:26]} 28. Nce2 {[%clk 0:00:05]}  Rd8 {[%clk 0:01:16]} 29. b3 {[%clk 0:00:05]}  Rc5 {[%clk 0:01:14]} 30. Rfd3 {[%clk 0:00:06]}  Rcc8 {[%clk 0:01:09]} 31. Kb2 {[%clk 0:00:06]}  Ne4 {[%clk 0:01:08]} 32. Rd1 {[%clk 0:00:02]}  Nxf2 {[%clk 0:01:08]} 33. R1d2 {[%clk 0:00:02]}  Nxd3+ {[%clk 0:01:07]} 34. Rxd3 {[%clk 0:00:03]}  Nxf4 {[%clk 0:01:05]} 35. Nxf4 {[%clk 0:00:03]}  e5 {[%clk 0:01:05]} 36. Re3 {[%clk 0:00:02]}  Rxd4 {[%clk 0:01:05]} 37. Nd3 {[%clk 0:00:02]}  f6 {[%clk 0:01:04]} 38. h3 {[%clk 0:00:02]}  Rcd8 {[%clk 0:01:03]} 39. Nc5 {[%clk 0:00:01]}  Rc8 {[%clk 0:00:53]} 40. Nxb7 {[%clk 0:00:01]}  Rd2 {[%clk 0:00:54]} 41. Rc3 {[%clk 0:00:01]}  Rxc3 {[%clk 0:00:54]} 42. Kxc3 {[%clk 0:00:02]}  Rh2 {[%clk 0:00:55]} 43. a4 {[%clk 0:00:02]}  Rxh3+ {[%clk 0:00:55]} 44. Kc4 {[%clk 0:00:03]}  Rh2 {[%clk 0:00:55]} 45. c3 {[%clk 0:00:03]}  g5 {[%clk 0:00:56]} 46. Nc5 {[%clk 0:00:04]}  g4 {[%clk 0:00:56]} 47. Ne4 {[%clk 0:00:04]}  Re2 {[%clk 0:00:53]} 48. Ng3 {[%clk 0:00:04]}  Rf2 {[%clk 0:00:53]} 49. b4 {[%clk 0:00:04]}  Rf3 {[%clk 0:00:53]} 50. Ne2 {[%clk 0:00:01]}  Re3 {[%clk 0:00:52]} 51. Ng1 {[%clk 0:00:01]}  Kd6 {[%clk 0:00:51]} 52. b5 {[%clk 0:00:01]}  axb5+ {[%clk 0:00:51]} 53. axb5 {[%clk 0:00:02]}  f5 {[%clk 0:00:51]} 54. Kb4 {[%clk 0:00:03]}  f4 {[%clk 0:00:52]} 55. c4 {[%clk 0:00:03]}  Re4 {[%clk 0:00:52]} 56. b6 {[%clk 0:00:03]}  f3 {[%clk 0:00:51]} 57. Kb5 {[%clk 0:00:03]}  f2 {[%clk 0:00:50]} 58. c5+ {[%clk 0:00:04]}  Kd7 {[%clk 0:00:50]} 59. c6+ {[%clk 0:00:04]}  Kc8 {[%clk 0:00:50]} 60. b7+ {[%clk 0:00:03]}  Kc7 {[%clk 0:00:50]} 0-1


[Site "https://www.chess.com"]

[Event "Titled Tuesday Blitz May 03 Early 2022"]
[White "Lopez, Henry"]
[Black "Perez Gormaz, Matias"]
[WhiteFideId "5203830"]
[BlackFideId "3406342"]
[WhiteElo "2177"]
[BlackElo "2322"]
[Result "1-0"]
[Round "09"]
[TimeControl "180+1"]
[Date "2022.05.03"]
[WhiteClock "0:00:59"]
[BlackClock "0:00:03"]

1. d4 {[%clk 0:03:00]}  d5 {[%clk 0:03:00]} 2. Nf3 {[%clk 0:02:59]}  e6 {[%clk 0:03:00]} 3. c4 {[%clk 0:02:59]}  a6 {[%clk 0:03:00]} 4. cxd5 {[%clk 0:02:53]}  exd5 {[%clk 0:03:01]} 5. Nc3 {[%clk 0:02:53]}  c6 {[%clk 0:03:01]} 6. Bf4 {[%clk 0:02:53]}  Bd6 {[%clk 0:03:02]} 7. Bg3 {[%clk 0:02:51]}  Ne7 {[%clk 0:03:01]} 8. e3 {[%clk 0:02:51]}  O-O {[%clk 0:03:01]} 9. Bd3 {[%clk 0:02:51]}  Bf5 {[%clk 0:03:02]} 10. O-O {[%clk 0:02:49]}  Bxg3 {[%clk 0:03:02]} 11. hxg3 {[%clk 0:02:48]}  Nd7 {[%clk 0:03:02]} 12. Rc1 {[%clk 0:02:46]}  Re8 {[%clk 0:03:01]} 13. Qc2 {[%clk 0:02:45]}  g6 {[%clk 0:03:01]} 14. Rfe1 {[%clk 0:02:42]}  Bxd3 {[%clk 0:02:57]} 15. Qxd3 {[%clk 0:02:42]}  Nf5 {[%clk 0:02:58]} 16. b4 {[%clk 0:02:38]}  Nd6 {[%clk 0:02:56]} 17. a4 {[%clk 0:02:33]}  b5 {[%clk 0:02:49]} 18. e4 {[%clk 0:02:22]}  dxe4 {[%clk 0:02:22]} 19. Nxe4 {[%clk 0:02:21]}  Qe7 {[%clk 0:01:43]} 20. Nc5 {[%clk 0:02:09]}  Qd8 {[%clk 0:01:43]} 21. Ne5 {[%clk 0:01:52]}  Nxe5 {[%clk 0:01:37]} 22. dxe5 {[%clk 0:01:48]}  Nc4 {[%clk 0:01:38]} 23. Qxd8 {[%clk 0:01:43]}  Rexd8 {[%clk 0:01:24]} 24. e6 {[%clk 0:01:39]}  fxe6 {[%clk 0:01:24]} 25. Rxe6 {[%clk 0:01:38]}  Rd6 {[%clk 0:00:55]} 26. Re7 {[%clk 0:01:24]}  a5 {[%clk 0:00:44]} 27. axb5 {[%clk 0:01:18]}  cxb5 {[%clk 0:00:44]} 28. bxa5 {[%clk 0:01:17]}  Rd5 {[%clk 0:00:03]} 29. Ne4 {[%clk 0:01:00]}  Re5 {[%clk 0:00:02]} 30. Nf6+ {[%clk 0:01:00]}  Kf8 {[%clk 0:00:03]} 31. Rxh7 {[%clk 0:00:59]} 1-0


[Site "https://www.chess.com"]

[Event "Titled Tuesday Blitz May 03 Early 2022"]
[White "Lorparizangeneh, Shahin"]
[Black "Sjugirov, Sanan"]
[WhiteFideId "12521604"]
[BlackFideId "4189302"]
[WhiteElo "2525"]
[BlackElo "2602"]
[Result "1/2-1/2"]
[Round "09"]
[TimeControl "180+1"]
[Date "2022.05.03"]
[WhiteClock "0:00:05"]
[BlackClock "0:00:20"]

1. d4 {[%clk 0:03:00]}  c6 {[%clk 0:03:00]} 2. c4 {[%clk 0:02:58]}  Nf6 {[%clk 0:03:01]} 3. Nf3 {[%clk 0:02:58]}  d5 {[%clk 0:03:01]} 4. e3 {[%clk 0:02:58]}  Bf5 {[%clk 0:03:01]} 5. Nc3 {[%clk 0:02:58]}  e6 {[%clk 0:03:02]} 6. Nh4 {[%clk 0:02:58]}  Bg6 {[%clk 0:03:02]} 7. Qb3 {[%clk 0:02:57]}  Qc7 {[%clk 0:03:00]} 8. Bd2 {[%clk 0:02:52]}  Be7 {[%clk 0:02:56]} 9. Rc1 {[%clk 0:02:51]}  Qb6 {[%clk 0:02:46]} 10. Nxg6 {[%clk 0:02:42]}  hxg6 {[%clk 0:02:46]} 11. Be2 {[%clk 0:02:32]}  Nbd7 {[%clk 0:02:45]} 12. Na4 {[%clk 0:02:20]}  Qxb3 {[%clk 0:02:42]} 13. axb3 {[%clk 0:02:21]}  Ne4 {[%clk 0:02:43]} 14. Bc3 {[%clk 0:02:15]}  Nxc3 {[%clk 0:02:42]} 15. bxc3 {[%clk 0:02:13]}  dxc4 {[%clk 0:02:31]} 16. bxc4 {[%clk 0:02:09]}  c5 {[%clk 0:02:28]} 17. Bf3 {[%clk 0:02:00]}  Rb8 {[%clk 0:02:28]} 18. O-O {[%clk 0:01:51]}  Kd8 {[%clk 0:02:26]} 19. Ra1 {[%clk 0:01:45]}  Kc7 {[%clk 0:02:24]} 20. Nb2 {[%clk 0:01:46]}  a6 {[%clk 0:02:22]} 21. Nd3 {[%clk 0:01:46]}  Bd6 {[%clk 0:02:16]} 22. g3 {[%clk 0:01:42]}  e5 {[%clk 0:02:15]} 23. Ra5 {[%clk 0:01:32]}  Kb6 {[%clk 0:02:05]} 24. Rfa1 {[%clk 0:00:57]}  f5 {[%clk 0:02:04]} 25. Bd5 {[%clk 0:00:54]}  e4 {[%clk 0:02:04]} 26. Nf4 {[%clk 0:00:43]}  Bxf4 {[%clk 0:01:41]} 27. exf4 {[%clk 0:00:40]}  Rhd8 {[%clk 0:01:28]} 28. Be6 {[%clk 0:00:35]}  cxd4 {[%clk 0:01:03]} 29. cxd4 {[%clk 0:00:34]}  Nf6 {[%clk 0:01:01]} 30. d5 {[%clk 0:00:31]}  Nd7 {[%clk 0:00:52]} 31. Bxd7 {[%clk 0:00:25]}  Rxd7 {[%clk 0:00:53]} 32. c5+ {[%clk 0:00:25]}  Kc7 {[%clk 0:00:50]} 33. c6 {[%clk 0:00:24]}  bxc6 {[%clk 0:00:49]} 34. dxc6 {[%clk 0:00:25]}  Rd2 {[%clk 0:00:43]} 35. Rxa6 {[%clk 0:00:14]}  Rbb2 {[%clk 0:00:43]} 36. Ra7+ {[%clk 0:00:10]}  Kxc6 {[%clk 0:00:43]} 37. R7a6+ {[%clk 0:00:10]}  Kb5 {[%clk 0:00:42]} 38. R6a5+ {[%clk 0:00:10]}  Kb4 {[%clk 0:00:41]} 39. R5a4+ {[%clk 0:00:10]}  Kc5 {[%clk 0:00:38]} 40. Ra5+ {[%clk 0:00:10]}  Kd6 {[%clk 0:00:36]} 41. Ra6+ {[%clk 0:00:10]}  Ke7 {[%clk 0:00:33]} 42. Ra7+ {[%clk 0:00:08]}  Kf8 {[%clk 0:00:29]} 43. Rc7 {[%clk 0:00:07]}  Kg8 {[%clk 0:00:22]} 44. Raa7 {[%clk 0:00:05]}  e3 {[%clk 0:00:18]} 45. Rxg7+ {[%clk 0:00:04]}  Kf8 {[%clk 0:00:18]} 46. Raf7+ {[%clk 0:00:03]}  Ke8 {[%clk 0:00:19]} 47. Re7+ {[%clk 0:00:04]}  Kf8 {[%clk 0:00:19]} 48. Ref7+ {[%clk 0:00:04]}  Ke8 {[%clk 0:00:20]} 49. Re7+ {[%clk 0:00:05]}  Kf8 {[%clk 0:00:20]} 50. Ref7+ {[%clk 0:00:05]} 1/2-1/2


[Site "https://www.chess.com"]